[Event "Prague Open 2025"]
[Site "Prague"]
[Date "2025.01.15"]
[Round "7.17"]
[White "Ejsymont, Blanka"]
[Black "Tyomkyn, Mikhail"]
[Result "0-1"]
[Annotator "NA COMBH"]
[ECO "C50"]
[WhiteElo "1904"]
[BlackElo "2143"]
[PlyCount "134"]
[EventDate "2025.01.07"]
[EventType "swiss"]
[EventCountry "CZE"]
[SourceTitle "playchess.com"]
[Source "ChessBase"]
[SourceQuality "1"]
[TimeControl "40/5400+30:1800+30"]

1. e4 {[%emt 0:00:03]} e5 {[%emt 0:00:05]} 2. Nf3 {[%emt 0:00:24]} Nc6 {[%emt 0:00:05]} 3. Bc4 {[%emt 0:00:04]} Nf6 {[%emt 0:00:08]} 4. d3 {[%emt 0:00:07]} Bc5 {[%emt 0:00:13]} 5. c3 {[%emt 0:00:22]} d6 {[%emt 0:00:13]} 6. O-O {[%emt 0:00:16]} a5 {[%emt 0:00:14]} 7. Re1 {[%emt 0:05:12]} Ba7 {[%emt 0:00:12]} 8. a4 {[%emt 0:01:34]} O-O {[%emt 0:00:12]} 9. h3 {[%emt 0:00:49]} h6 {[%emt 0:05:05]} 10. Nbd2 {[%emt 0:11:24]} Be6 $11 {[%emt 0:04:25]} 11. Bb3 {[%emt 0:07:13]} Qd7 {[%emt 0:15:31]} 12. Nf1 {[%emt 0:03:54]} Ne7 {[%emt 0:07:03]} 13. Ng3 {[%emt 0:08:08]} Ng6 {[%emt 0:01:43]} 14. d4 {[%emt 0:08:37]} Bxb3 {[%emt 0:19:36]} 15. Qxb3 {[%emt 0:00:25]} c6 {[%emt 0:04:28]} 16. Be3 {[%emt 0:10:33]} exd4 {[%emt 0:02:57]} 17. Bxd4 {[%emt 0:01:52]} Bxd4 {[%emt 0:01:14]} 18. cxd4 {[%emt 0:01:11]} Rfe8 {[%emt 0:04:18]} 19. Rad1 {[%emt 0:04:16]} Nf4 {[%emt 0:05:27]} 20. e5 {[%emt 0:06:05]} N6d5 {[%emt 0:00:47]} 21. exd6 {[%emt 0:02:17]} Nxg2 {[%emt 0:04:45]} 22. Rxe8+ {[%emt 0:10:55]} Rxe8 {[%emt 0:00:07]} 23. Ne5 {[%emt 0:02:11]} Qxh3 {[%emt 0:02:01]} 24. Qf3 {[%emt 0:01:50]} Nh4 {[%emt 0:01:30]} 25. Qh1 {[%emt 0:05:03]} Qxh1+ {[%emt 0:01:31]} 26. Kxh1 {[%emt 0:00:04]} Rd8 {[%emt 0:00:25]} 27. Ne4 {[%emt 0:01:17]} Nf5 {[%emt 0:06:14]} 28. Nc4 {[%emt 0:00:36]} b6 {[%emt 0:01:47]} 29. Kg1 {[%emt 0:00:33]} f6 {[%emt 0:00:55]} 30. Kf1 {[%emt 0:03:34]} Kf7 {[%emt 0:00:45]} 31. Ke2 {[%emt 0:00:21]} Ke6 {[%emt 0:05:01]} 32. Kd3 {[%emt 0:00:59]} h5 {[%emt 0:01:16]} 33. Re1 {[%emt 0:03:00]} Kd7 {[%emt 0:00:09]} 34. Rg1 {[%emt 0:01:23]} g5 {[%emt 0:02:34]} 35. Re1 {[%emt 0:00:45]} h4 {[%emt 0:01:26]} 36. b3 {[%emt 0:00:36]} Rh8 {[%emt 0:00:41]} 37. Rh1 {[%emt 0:00:30]} Nf4+ {[%emt 0:01:14]} 38. Kd2 {[%emt 0:00:20]} Nd5 {[%emt 0:00:03]} 39. Kd3 {[%emt 0:00:23]} Rb8 {[%emt 0:00:23]} 40. Re1 {[%emt 0:00:18]} Nf4+ {[%emt 0:01:21]} 41. Kd2 {[%emt 0:30:05]} Nd5 {[%emt 0:30:47]} 42. Kd3 {[%emt 0:00:14]} h3 {[%emt 0:00:00]} 43. Rg1 {[%emt 0:00:00]} Rh8 {[%emt 0:00:00]} 44. Re1 {[%emt 0:00:00]} h2 {[%emt 0:00:00]} 45. Rh1 {[%emt 0:00:00]} Rh3+ {[%emt 0:00:00]} 46. Kd2 {[%emt 0:00:00]} Nxd4 {[%emt 0:00:00]} 47. Ne3 {[%emt 0:00:00]} Nxb3+ {[%emt 0:00:00]} 48. Kc2 {[%emt 0:00:00]} Nxe3+ {[%emt 0:00:00]} 49. fxe3 {[%emt 0:00:00]} Nc5 {[%emt 0:00:00]} 50. Nxf6+ {[%emt 0:00:00]} Kxd6 {[%emt 0:00:00]} 51. Ng4 {[%emt 0:00:00]} Nxa4 {[%emt 0:00:00]} 52. Rxh2 {[%emt 0:00:00]} Rxh2+ {[%emt 0:00:00]} 53. Nxh2 {[%emt 0:00:00]} Kd5 {[%emt 0:00:00]} 54. Kd3 {[%emt 0:00:00]} Nc5+ {[%emt 0:00:00]} 55. Kd2 {[%emt 0:00:00]} Ne4+ {[%emt 0:00:00]} 56. Kd3 {[%emt 0:00:00]} a4 {[%emt 0:00:00]} 57. Ng4 {[%emt 0:00:00]} b5 {[%emt 0:00:00]} 58. Nh6 {[%emt 0:00:00]} c5 {[%emt 0:00:52]} 59. Nf5 {[%emt 0:00:00]} c4+ {[%emt 0:00:11]} 60. Kc2 {[%emt 0:00:00]} g4 {[%emt 0:00:41]} 61. Kb2 {[%emt 0:00:00]} g3 {[%emt 0:00:31]} 62. Nh4 {[%emt 0:00:00]} b4 {[%emt 0:00:46]} 63. Ng2 {[%emt 0:00:00]} c3+ {[%emt 0:00:12]} 64. Kb1 {[%emt 0:00:00]} Kc4 {[%emt 0:00:42]} 65. Ne1 {[%emt 0:00:00]} b3 {[%emt 0:00:35]} 66. Kc1 {[%emt 0:00:00]} b2+ {[%emt 0:01:09]} 67. Kc2 {[%emt 0:00:00] Check Result:-#4} Nd2 {[%emt 0:00:08]} 0-1

[Event "Prague Open 2025"]
[Site "Prague"]
[Date "2025.01.15"]
[Round "7.18"]
[White "Sindler, Michal"]
[Black "Musil, Vitezslav"]
[Result "1/2-1/2"]
[Annotator "TA"]
[ECO "C11"]
[WhiteElo "2136"]
[BlackElo "1937"]
[PlyCount "87"]
[EventDate "2025.01.07"]
[EventType "swiss"]
[EventCountry "CZE"]
[SourceTitle "playchess.com"]
[Source "ChessBase"]
[SourceQuality "1"]
[TimeControl "40/5400+30:1800+30"]

{[%evp 26,87,22,15,17,17,45,37,37,35,57,37,33,29,35,29,26,0,0,0,14,0,0,-8,0,0,0,-25,-15,-28,-22,-35,-20,-22,0,-18,0,0,0,-8,0,-6,8,9,17,11,23,23,23,23,23,23,31,23,23,23,23,16,31,23,23,23,23,23]} 1. e4 {[%emt 0:00:42]} e6 {[%emt 0:00:05]} 2. d4 {[%emt 0:00:12]} d5 {[%emt 0:00:06]} 3. Nc3 {[%emt 0:00:10]} Nf6 4. e5 {[%emt 0:00:12]} Nfd7 {[%emt 0:00:10]} 5. f4 {[%emt 0:00:05]} c5 {[%emt 0:00:03]} 6. Nf3 {[%emt 0:00:07]} Nc6 {[%emt 0:00:03]} 7. Be3 {[%emt 0:00:23]} cxd4 {[%emt 0:00:13]} 8. Nxd4 {[%emt 0:00:10]} Bc5 {[%emt 0:00:04]} 9. Qd2 {[%emt 0:00:50]} Bxd4 {[%emt 0:00:15]} 10. Bxd4 {[%emt 0:00:36]} Nxd4 {[%emt 0:00:04]} 11. Qxd4 {[%emt 0:00:38]} Qb6 {[%emt 0:00:06]} 12. Qxb6 {[%emt 0:03:56]} Nxb6 {[%emt 0:00:10]} 13. Nb5 {[%emt 0:00:48]} Ke7 {[%emt 0:00:52]} 14. O-O-O {[%emt 0:02:06]} Bd7 {[%emt 0:01:19]} 15. Nd4 {[%emt 0:00:34]} a6 {[%emt 0:02:07]} 16. b3 {[%emt 0:02:51]} Rag8 {[%emt 0:05:45]} 17. Bd3 {[%emt 0:23:12]} Bc8 {[%emt 0:07:16]} 18. Rde1 {[%emt 0:12:43]} Nd7 {[%emt 0:05:36]} 19. Rhf1 {[%emt 0:03:44]} Nc5 {[%emt 0:00:13]} 20. Kd2 {[%emt 0:00:19]} f5 {[%emt 0:13:41]} 21. exf6+ {[%emt 0:03:27]} gxf6 {[%emt 0:00:43]} 22. Rf2 {[%emt 0:12:07][%cal Od4e6]} Kd6 {[%emt 0:09:27]} 23. b4 {[%emt 0:01:59]} Nxd3 {[%emt 0:01:14]} 24. cxd3 {[%emt 0:00:36]} Bd7 {[%emt 0:01:42]} 25. Rfe2 {[%emt 0:06:13][%cal Rd4e6]} Re8 {[%emt 0:00:53]} 26. Kc3 {[%emt 0:04:44]} Rhg8 {[%emt 0:08:22]} 27. g3 {[%emt 0:01:05]} Rgf8 {[%emt 0:04:30]} 28. Nf3 {[%emt 0:01:15]} Rc8+ 29. Kb2 {[%emt 0:01:04]} Rce8 {[%emt 0:05:27]} 30. Kb3 {[%emt 0:01:12]} Re7 {[%emt 0:02:25]} 31. a4 {[%emt 0:00:35]} Rfe8 {[%emt 0:00:07]} 32. d4 {[%emt 0:00:30]} Rc8 {[%emt 0:05:10]} 33. f5 {[%emt 0:05:36]} Rce8 {[%emt 0:01:07]} 34. fxe6 {[%emt 0:00:30]} Rxe6 {[%emt 0:00:30]} 35. Rxe6+ {[%emt 0:00:37]} Rxe6 {[%emt 0:00:09]} 36. Rxe6+ {[%emt 0:00:51]} Bxe6 $11 {[%emt 0:01:46][%mdl 4096] Endgame KB-KN} 37. Nh4 {[%emt 0:01:07]} Bh3 {[%emt 0:02:00]} 38. a5 {[%emt 0:00:49]} Ke6 {[%emt 0:01:22]} 39. Kc3 {[%emt 0:00:30]} Bf1 {[%emt 0:00:35]} 40. Kd2 {[%emt 0:02:24]} Bh3 41. Ke3 {[%emt 0:35:57]} Bf1 {[%emt 0:31:25]} 42. Kf4 {[%emt 0:00:30]} Bd3 {[%emt 0:02:02]} 43. Nf3 {[%emt 0:00:00]} Kd6 {[%emt 0:00:00]} 44. Ke3 $1 {[%emt 0:00:00]} 1/2-1/2

[Event "Prague Open 2025"]
[Site "Prague"]
[Date "2025.01.15"]
[Round "7.19"]
[White "Zhang, Hongya"]
[Black "Filindash, Nikita"]
[Result "0-1"]
[Annotator "NA RC"]
[ECO "C42"]
[WhiteElo "1648"]
[BlackElo "2072"]
[PlyCount "48"]
[EventDate "2025.01.07"]
[EventType "swiss"]
[EventCountry "CZE"]
[SourceTitle "playchess.com"]
[Source "ChessBase"]
[SourceQuality "1"]
[TimeControl "40/5400+30:1800+30"]

1. e4 {[%emt 0:00:05]} e5 {[%emt 0:00:05]} 2. Nf3 {[%emt 0:00:03]} Nf6 {[%emt 0:00:05]} 3. Nxe5 {[%emt 0:00:05]} d6 {[%emt 0:00:04]} 4. Nf3 {[%emt 0:00:12]} Nxe4 {[%emt 0:00:02]} 5. Nc3 {[%emt 0:00:10]} Nxc3 {[%emt 0:00:10]} 6. dxc3 {[%emt 0:00:01]} Be7 {[%emt 0:00:15]} 7. Be3 {[%emt 0:00:05]} O-O {[%emt 0:00:36]} 8. Qd2 {[%emt 0:00:05]} Be6 {[%emt 0:00:34]} 9. O-O-O {[%emt 0:00:31]} Bxa2 {[%emt 0:01:43]} 10. b3 {[%emt 0:00:09]} a5 {[%emt 0:00:05]} 11. Kb2 {[%emt 0:00:03]} a4 {[%emt 0:00:47]} 12. Ra1 {[%emt 0:00:20]} axb3 $16 {[%emt 0:24:22]} (12... Bxb3 $18 13. cxb3 Qd7) 13. cxb3 {[%emt 0:00:02]} c5 {[%emt 0:00:27]} 14. Rxa2 {[%emt 0:05:18]} Rxa2+ {[%emt 0:00:25]} 15. Kxa2 {[%emt 0:00:01]} Qa5+ {[%emt 0:00:12]} 16. Kb2 {[%emt 0:00:07]} Nc6 {[%emt 0:01:23]} 17. Bd3 {[%emt 0:00:44]} Ra8 {[%emt 0:02:05]} 18. Bb1 {[%emt 0:00:59]} Bf6 {[%emt 0:14:28]} 19. Bg5 {[%emt 0:05:34]} Nb4 {[%emt 0:00:24]} 20. Kc1 {[%emt 0:04:20]} Bxc3 {[%emt 0:00:53]} 21. Qxd6 {[%emt 0:11:39]} Qa3+ {[%emt 0:08:51]} 22. Kd1 {[%emt 0:00:07]} Qb2 {[%emt 0:00:10]} 23. Qxc5 {[%emt 0:22:49]} Qxb1+ {[%emt 0:00:07]} 24. Bc1 {[%emt 0:00:23]} Qc2# {[%emt 0:00:06]} 0-1

[Event "Prague Open 2025"]
[Site "Prague"]
[Date "2025.01.15"]
[Round "7.20"]
[White "Taborsky, Rostislav"]
[Black "Mouryc, Tomas"]
[Result "1/2-1/2"]
[Annotator "NA COMBH"]
[ECO "E12"]
[WhiteElo "2069"]
[BlackElo "1932"]
[PlyCount "67"]
[EventDate "2025.01.07"]
[EventType "swiss"]
[EventCountry "CZE"]
[SourceTitle "playchess.com"]
[Source "ChessBase"]
[SourceQuality "1"]
[TimeControl "40/5400+30:1800+30"]

1. d4 {[%emt 0:04:37]} Nf6 {[%emt 0:00:33]} 2. c4 {[%emt 0:00:13]} e6 {[%emt 0:00:18]} 3. Nf3 {[%emt 0:00:27]} b6 {[%emt 0:00:39]} 4. a3 {[%emt 0:00:16]} Bb7 {[%emt 0:00:39]} 5. Bf4 {[%emt 0:00:37]} Be7 {[%emt 0:01:18]} 6. Nc3 {[%emt 0:02:55]} Ne4 {[%emt 0:02:46]} 7. Nxe4 {[%emt 0:02:04]} Bxe4 {[%emt 0:00:05]} 8. e3 {[%emt 0:05:47]} d6 {[%emt 0:07:04]} 9. Bd3 {[%emt 0:15:21]} Bb7 {[%emt 0:12:43]} 10. e4 {[%emt 0:06:51]} Nd7 {[%emt 0:02:45]} 11. d5 {[%emt 0:07:17]} Bf6 {[%emt 0:08:35]} 12. Rb1 {[%emt 0:06:31]} Qe7 {[%emt 0:11:45]} 13. O-O {[%emt 0:01:05]} g5 {[%emt 0:04:17]} 14. Be3 {[%emt 0:05:34]} h5 {[%emt 0:10:01]} 15. b4 {[%emt 0:00:59]} Ne5 {[%emt 0:15:57]} 16. Nxe5 {[%emt 0:03:41]} dxe5 {[%emt 0:02:01]} 17. c5 {[%emt 0:11:15]} exd5 {[%emt 0:06:08]} 18. exd5 {[%emt 0:00:52]} Kf8 {[%emt 0:00:48]} 19. c6 {[%emt 0:10:30]} Bc8 {[%emt 0:00:19]} 20. Be4 {[%emt 0:00:13]} Qd6 {[%emt 0:04:17]} 21. Qd2 {[%emt 0:03:10]} Rg8 {[%emt 0:02:21]} 22. Rfd1 {[%emt 0:04:35]} Be7 {[%emt 0:00:57]} 23. Qc2 {[%emt 0:00:43]} Qd8 {[%emt 0:01:50]} 24. Bh7 {[%emt 0:03:00]} Rg7 {[%emt 0:01:01]} 25. h4 {[%emt 0:00:30]} Qd6 {[%emt 0:01:44]} 26. Bf5 {[%emt 0:01:44]} gxh4 {[%emt 0:01:23]} 27. Bxc8 {[%emt 0:00:24]} Rxc8 {[%emt 0:00:01]} 28. Qf5 Rd8 {[%emt 0:00:14]} 29. Qxh5 {[%emt 0:00:27]} Qg6 {[%emt 0:00:35]} 30. Qh8+ {[%emt 0:01:25]} Rg8 {[%emt 0:00:12]} 31. Qh6+ {[%emt 0:00:14]} Rg7 {[%emt 0:01:04]} 32. Qh8+ {[%emt 0:01:38]} Rg8 {[%emt 0:00:01]} 33. Qh6+ {[%emt 0:00:04]} Rg7 {[%emt 0:00:04] Check Result:0.00} 34. Qh8+ {[%emt 0:01:26]} 1/2-1/2

[Event "Prague Open 2025"]
[Site "Prague"]
[Date "2025.01.15"]
[Round "7.21"]
[White "Bezeyko, Olexander"]
[Black "Policar, Martin"]
[Result "1-0"]
[Annotator "NA RC"]
[ECO "B03"]
[WhiteElo "2050"]
[BlackElo "1861"]
[PlyCount "115"]
[EventDate "2025.01.07"]
[EventType "swiss"]
[EventCountry "CZE"]
[SourceTitle "playchess.com"]
[Source "ChessBase"]
[SourceQuality "1"]
[TimeControl "40/5400+30:1800+30"]

1. e4 {[%emt 0:00:02]} Nf6 {[%emt 0:00:55]} 2. e5 {[%emt 0:00:08]} Nd5 {[%emt 0:00:03]} 3. c4 {[%emt 0:00:07]} Nb6 {[%emt 0:00:02]} 4. d4 {[%emt 0:00:07]} d6 {[%emt 0:00:03]} 5. f4 {[%emt 0:00:05]} dxe5 {[%emt 0:00:10]} 6. fxe5 {[%emt 0:00:04]} Nc6 {[%emt 0:00:15]} 7. Be3 {[%emt 0:00:05]} Bf5 {[%emt 0:02:22]} 8. Be2 {[%emt 0:02:09]} e6 {[%emt 0:00:06]} 9. Nf3 {[%emt 0:00:08]} Be7 {[%emt 0:00:10]} 10. O-O {[%emt 0:00:52]} O-O {[%emt 0:01:39]} 11. Nc3 {[%emt 0:00:11]} f6 {[%emt 0:00:56]} 12. exf6 {[%emt 0:00:30]} Bxf6 {[%emt 0:00:27]} 13. Qd2 {[%emt 0:03:59]} Qd7 {[%emt 0:07:06]} 14. Rad1 {[%emt 0:00:23]} Rad8 {[%emt 0:00:25]} 15. Qc1 {[%emt 0:04:04]} Qe7 {[%emt 0:04:24]} 16. h3 {[%emt 0:03:46]} Bg6 {[%emt 0:02:16]} 17. Kh1 {[%emt 0:05:43]} a6 {[%emt 0:05:30]} 18. b3 {[%emt 0:02:09]} Kh8 {[%emt 0:02:19]} 19. Rf2 {[%emt 0:07:32]} Rd7 {[%emt 0:15:45]} 20. d5 {[%emt 0:08:10]} Bxc3 {[%emt 0:04:37]} 21. dxc6 {[%emt 0:06:25]} Rxd1+ {[%emt 0:00:11]} 22. Bxd1 {[%emt 0:00:10]} Bf6 {[%emt 0:03:48]} 23. cxb7 {[%emt 0:00:29]} c5 {[%emt 0:02:03]} 24. Bc2 {[%emt 0:04:32]} Bxc2 {[%emt 0:00:24]} 25. Qxc2 {[%emt 0:00:05]} Rb8 {[%emt 0:06:42]} 26. Qe4 {[%emt 0:02:57]} Qxb7 {[%emt 0:07:33]} 27. Qxe6 {[%emt 0:01:31]} Qe7 {[%emt 0:05:43]} 28. Qxe7 {[%emt 0:00:11]} Bxe7 {[%emt 0:00:05]} 29. Ne5 {[%emt 0:01:42]} Re8 {[%emt 0:04:52]} 30. Nd3 {[%emt 0:01:48]} Nd7 {[%emt 0:02:19]} 31. Rf5 {[%emt 0:00:41]} Bd6 {[%emt 0:02:08]} 32. Rd5 {[%emt 0:00:15]} Re6 {[%emt 0:01:59]} 33. Bf4 {[%emt 0:00:50]} Bxf4 {[%emt 0:01:24]} 34. Nxf4 {[%emt 0:01:00]} Re1+ {[%emt 0:01:16]} 35. Kh2 {[%emt 0:00:02]} Re7 {[%emt 0:00:22]} 36. Nd3 {[%emt 0:00:03]} Kg8 {[%emt 0:00:36]} 37. Nxc5 {[%emt 0:00:05]} Nxc5 {[%emt 0:00:29]} 38. Rxc5 {[%emt 0:00:02]} Kf7 {[%emt 0:00:09]} 39. Rc6 {[%emt 0:00:16]} a5 {[%emt 0:00:24]} 40. Ra6 {[%emt 0:00:34]} Re5 {[%emt 0:00:05]} 41. Kg3 {[%emt 0:30:04]} Rf5 {[%emt 0:30:35]} 42. Rb6 {[%emt 0:00:17]} Ke7 {[%emt 0:00:37]} 43. Rb5 {[%emt 0:00:05]} Rxb5 {[%emt 0:00:45]} 44. cxb5 {[%emt 0:00:02]} Kd6 {[%emt 0:00:02]} 45. a4 {[%emt 0:00:08]} h6 {[%emt 0:00:14]} 46. Kf4 {[%emt 0:00:02]} g6 {[%emt 0:00:10]} 47. h4 {[%emt 0:00:05]} Kd5 {[%emt 0:00:46]} 48. g4 {[%emt 0:00:07]} Kd6 {[%emt 0:00:11]} 49. h5 {[%emt 0:00:08]} gxh5 {[%emt 0:00:18]} 50. gxh5 {[%emt 0:00:02]} Kc5 {[%emt 0:00:33]} 51. Kf5 {[%emt 0:00:02]} Kb4 {[%emt 0:00:07]} 52. b6 {[%emt 0:00:04]} Kxb3 {[%emt 0:00:02]} 53. b7 {[%emt 0:00:04]} Kxa4 {[%emt 0:00:03]} 54. b8=Q {[%emt 0:00:06]} Ka3 {[%emt 0:00:05]} 55. Kg6 {[%emt 0:00:12]} a4 {[%emt 0:00:05]} 56. Kxh6 {[%emt 0:00:04]} Ka2 {[%emt 0:00:02]} 57. Qb4 {[%emt 0:00:10]} a3 {[%emt 0:00:05]} 58. Qxa3+ {[%emt 0:00:03]} 1-0